bitfinex-derivatives/quotes_ETHF0:USTF0_20241008
["timestamp","ask_amount","ask_price","bid_price","bid_amount"]
[1728348059356,0.82716,2439.0,2438.9,0.4061]
[1728348061265,0.4171,2439.0,2438.7,1.2085]
[1728348061565,0.41008,2438.9,2438.7,1.2085]
[1728348062064,0.41008,2438.9,2438.6,3.61791]
[1728348062259,0.41011,2438.7,2438.6,3.61791]
[1728348062469,2.24244925,2439.0,2438.7,0.41011]
[1728348062470,0.41011,2438.8,2438.7,0.41011]
[1728348063373,2.24244925,2439.0,2438.6,3.2078]
[1728348063570,0.80101,2438.7,2438.6,3.61792]
[1728348063765,0.80101,2438.7,2438.6,0.41012]
[1728348063962,0.3909,2438.7,2438.6,0.41012]
[1728348064379,0.41013,2438.6,2438.5,1.20204]
[1728348064669,0.80102,2438.7,2438.6,0.41013]
[1728348066866,0.41012,2438.7,2438.6,0.41013]
[1728348069374,0.41013,2438.6,2438.5,1.20203]
[1728348069571,0.4102,2438.2,2438.1,0.50621]
[1728348069772,1.1745,2438.5,2438.1,1.8929]
[1728348069967,0.7817,2438.5,2438.1,1.8929]
[1728348070164,0.7817,2438.5,2438.4,0.41016]
[1728348070165,0.80056,2438.5,2438.4,0.41016]
[1728348070669,0.80056,2438.5,2438.4,1.60576]
[1728348070865,0.80056,2438.5,2438.4,1.1956]
[1728348071481,0.80056,2438.5,2438.4,1.60576]
[1728348072073,0.80056,2438.5,2438.4,1.1956]
[1728348073873,0.80056,2438.5,2438.4,1.60576]
[1728348075479,0.3904,2438.5,2438.4,1.60576]
[1728348077177,0.80054,2438.5,2438.4,1.60576]
[1728348077381,0.3904,2438.5,2438.4,1.60576]
[1728348078783,0.80054,2438.5,2438.4,1.60576]
[1728348080880,0.80054,2438.5,2438.4,1.1956]
[1728348082084,0.80054,2438.5,2438.4,1.60576]
[1728348082386,0.80054,2438.5,2438.4,1.1956]
[1728348082685,0.80054,2438.5,2438.4,1.60576]
[1728348083989,3.2078,2439.1,2438.4,6.7764]
[1728348084189,0.41012,2438.7,2438.5,0.41013]
[1728348084387,0.41014,2438.5,2438.4,1.1956]
[1728348084797,0.4102,2438.2,2438.1,0.50621]
[1728348085101,0.4102,2438.2,2438.1,1.21861]
[1728348085291,0.4102,2438.2,2438.1,5.32021]
[1728348085599,0.4102,2438.2,2438.1,0.8084]
[1728348086802,0.4102,2438.2,2438.1,1.21861]
[1728348089195,0.4102,2438.2,2438.1,0.8084]
[1728348089588,0.4102,2438.2,2438.1,1.21861]
[1728348091201,0.4102,2438.2,2438.1,2.69861]
[1728348094498,0.4102,2438.2,2438.1,2.2884]
[1728348095399,0.4102,2438.2,2438.1,2.69861]
[1728348096101,0.41021,2438.1,2438.0,1.8782]
[1728348096299,0.41021,2438.1,2438.0,1.48]
[1728348096797,0.41021,2438.1,2438.0,1.89023]
[1728348097407,0.41021,2438.1,2438.0,1.48]
[1728348098104,0.41021,2438.1,2438.0,1.89023]
[1728348098295,0.41021,2438.1,2438.0,1.89022]
[1728348100100,0.41021,2438.2,2438.1,0.41021]
[1728348100301,1.44058,2438.3,2438.0,1.48]
[1728348100616,0.41021,2438.1,2438.0,1.89022]
[1728348102415,0.41021,2438.1,2438.0,1.48]
[1728348103006,1.44058,2438.3,2437.9,0.4161]
[1728348103211,0.80793,2438.0,2437.9,0.4161]
[1728348103400,0.80793,2438.0,2437.9,2.30635]
[1728348105306,0.3977,2438.0,2437.9,2.30635]
[1728348106204,0.3977,2438.0,2437.9,2.84946624]
[1728348106401,0.80793,2438.0,2437.9,2.84944653]
[1728348106605,0.80793,2438.0,2437.9,2.30635]
[1728348111314,0.3977,2438.0,2437.9,2.30635]
[1728348111716,0.80793,2438.0,2437.9,2.30635]
[1728348112412,0.80793,2438.0,2437.9,0.4161]
[1728348114815,0.80793,2438.0,2437.9,0.82635]
[1728348115716,0.80793,2438.0,2437.9,0.4161]
[1728348115917,0.41028,2437.7,2437.6,0.096]
[1728348116116,0.41031,2437.5,2437.4,2.30121]
[1728348116817,0.81321,2437.6,2437.5,0.41031]
[1728348120919,0.41031,2437.5,2437.4,0.41033]
[1728348121119,0.41034,2437.4,2437.3,0.41034]
[1728348121420,0.41033,2437.4,2437.3,0.41033]
[1728348121825,1.21412,2437.5,2437.4,0.41033]
[1728348122316,0.8038,2437.5,2437.4,0.41033]
[1728348122713,0.41033,2437.4,2437.3,1.89033]
[1728348123427,0.8038,2437.5,2437.2,4.4247]
[1728348123724,0.41035,2437.3,2437.2,4.83506]
[1728348125027,0.41034,2437.4,2437.3,0.41035]
[1728348125923,1.21413,2437.5,2437.2,5.9047]
[1728348126125,1.21413,2437.5,2437.4,0.41033]
[1728348126525,0.8038,2437.5,2437.2,5.9047]
[1728348126720,0.41034,2437.4,2437.3,0.41034]
[1728348128125,0.41029,2437.7,2437.3,1.48]
[1728348128429,0.41029,2437.7,2437.6,0.41029]
[1728348128628,0.423,2437.8,2437.5,4.6878]
[1728348128821,0.41028,2437.7,2437.6,1.20988]
[1728348129021,0.41028,2437.7,2437.6,1.61798]
[1728348129625,0.41028,2437.7,2437.6,1.2077]
[1728348130626,0.41028,2437.7,2437.6,1.618]
[1728348131124,0.423,2437.8,2437.3,1.48]
[1728348131330,0.41032,2437.5,2437.3,2.2782]
[1728348131527,0.42,2437.4,2437.3,2.68854]
[1728348131923,0.42,2437.4,2437.2,0.80226]
[1728348132123,0.41035,2437.3,2437.2,0.3919]
[1728348132330,0.41035,2437.3,2437.2,0.80226]
[1728348137636,0.42,2437.4,2437.3,0.41035]
[1728348137840,0.41033,2437.5,2437.4,0.41033]
[1728348138837,0.7918,2437.6,2437.2,1.8719]
[1728348139427,0.41034,2437.4,2437.3,0.41034]
[1728348140434,1.81758,2437.6,2437.3,0.41035]
[1728348140636,0.41031,2437.5,2437.4,0.4211]
[1728348142543,0.41031,2437.5,2437.4,0.8158]
[1728348143633,0.4103,2437.6,2437.5,0.41031]
[1728348148040,0.41026,2437.8,2437.7,0.41028]
[1728348148244,0.41026,2437.8,2437.7,4.51268]
[1728348148655,0.41026,2437.8,2437.7,4.92868]
[1728348148949,0.41026,2437.8,2437.7,0.82628]
[1728348150548,5.35431,2438.8,2437.9,0.41023]
[1728348150744,1.208,2438.5,2438.1,1.48]
[1728348150942,0.41019,2438.3,2438.2,0.3847]
[1728348151143,0.3855,2438.5,2438.2,0.3847]
[1728348151344,0.41016,2438.5,2438.4,0.41015]
[1728348151842,0.41016,2438.5,2438.4,1.24605]
[1728348152153,0.41016,2438.5,2438.4,0.8359]
[1728348152450,0.41014,2438.6,2438.4,4.9367]
[1728348152745,0.41014,2438.6,2438.5,0.41014]
[1728348153045,0.41011,2438.7,2438.4,1.24605]
[1728348153252,0.41014,2438.6,2438.4,1.24605]
[1728348153746,0.41014,2438.5,2438.4,1.24605]
[1728348154146,0.41013,2438.6,2438.5,0.41014]
[1728348154943,0.41013,2438.6,2438.4,1.24606]
[1728348155148,0.41014,2438.5,2438.4,1.24606]
[1728348156450,0.41014,2438.6,2438.4,1.24606]
[1728348157154,0.41014,2438.6,2438.5,0.41014]
[1728348157364,0.8041,2439.0,2438.5,8.7886]
[1728348157548,0.3893,2439.4,2438.9,4.6878]
[1728348157761,0.816,2439.4,2439.2,1.89002]
[1728348157944,0.816,2439.4,2439.2,1.89001]
[1728348158948,0.816,2439.4,2439.2,5.09781]
[1728348160450,0.816,2439.4,2439.2,3.61781]
[1728348161653,0.406,2439.4,2439.2,3.2078]
[1728348161845,0.83087,2439.6,2439.4,0.40999]
[1728348162853,0.40998,2439.5,2439.4,0.40999]
[1728348163754,0.40998,2439.5,2439.3,0.41]
[1728348164855,0.4209,2439.6,2439.3,0.41]
[1728348165060,0.40999,2439.4,2439.3,0.41]
[1728348171761,0.40999,2439.5,2439.3,0.41]
[1728348172166,0.40999,2439.5,2439.2,6.4078]
[1728348172368,0.40999,2439.5,2439.4,0.40999]
[1728348173168,0.41,2439.4,2439.3,0.41]
[1728348177971,0.41001,2439.3,2439.2,3.2078]
[1728348178176,1.22201,2439.3,2439.2,3.2078]
[1728348178574,0.41007,2439.0,2438.9,0.41007]
[1728348178966,0.41007,2439.0,2438.9,4.51007]
[1728348179174,0.812,2439.3,2438.9,4.1]
[1728348179374,0.83462,2439.3,2439.2,0.41003]
[1728348180676,0.41003,2439.2,2439.1,3.61783]
[1728348181468,0.41003,2439.2,2439.1,3.2078]
[1728348182876,0.41003,2439.2,2439.1,3.61784]
[1728348185687,0.41003,2439.2,2439.1,0.41004]
[1728348187077,0.4246,2439.3,2438.9,1.48]
[1728348187279,0.41004,2439.2,2439.1,0.41004]
[1728348187975,0.41003,2439.2,2439.1,0.41004]
[1728348190291,0.41005,2439.1,2439.0,0.41005]
[1728348190586,0.81305,2439.1,2439.0,0.41005]
[1728348191379,0.41006,2439.0,2438.9,1.89007]
[1728348191587,0.41008,2438.9,2438.8,1.60229]
[1728348191993,0.41008,2438.9,2438.8,0.81599]
[1728348192884,0.41009,2438.8,2438.7,1.8901]
[1728348193084,1.81007,2439.0,2438.7,1.48]
[1728348193383,0.41009,2438.8,2438.7,1.89011]
[1728348193584,0.41009,2438.8,2438.7,0.41011]
[1728348193890,1.81007,2439.0,2438.6,0.8318]
[1728348194080,0.4187,2438.7,2438.6,1.24193]
[1728348194289,0.4187,2438.7,2438.5,3.6051]
[1728348194598,0.41014,2438.6,2438.5,0.41014]
[1728348194890,0.82644,2438.6,2438.5,0.41014]
[1728348195891,0.4163,2438.6,2438.4,1.48]
[1728348196090,0.41014,2438.5,2438.4,1.89015]
[1728348196986,0.41014,2438.5,2438.4,1.89014]
[1728348197689,0.4163,2438.6,2438.5,0.41014]
[1728348197894,0.8237,2438.7,2438.6,0.41013]
[1728348197895,0.4187,2438.7,2438.6,0.41013]
[1728348202491,0.41008,2438.9,2438.8,0.41008]
[1728348202695,4.51008,2438.9,2438.8,0.41008]
[1728348203092,5.58,2438.9,2438.3,1.2291]
[1728348203289,0.41016,2438.4,2438.3,3.11927]
[1728348203690,0.8182,2438.6,2438.3,2.7091]
[1728348203888,0.8182,2438.6,2438.4,1.48]
[1728348204090,0.41014,2438.5,2438.4,1.89015]
[1728348204703,0.41014,2438.5,2438.4,1.48]
[1728348205497,0.41014,2438.5,2438.4,1.89016]
[1728348206589,0.4101,2438.8,2438.7,0.4101]
[1728348207499,1.02519,2439.0,2438.4,1.576]
[1728348207699,0.41013,2438.7,2438.6,0.41012]
[1728348208491,0.41011,2438.8,2438.7,0.4101]
[1728348209391,0.41011,2438.8,2438.7,0.834]
[1728348209995,0.41011,2438.8,2438.7,1.2372]
[1728348212403,0.41011,2438.8,2438.7,0.8271]
[1728348213700,0.4157,2439.0,2438.7,0.8271]
[1728348213901,0.41009,2438.9,2438.8,0.41009]
[1728348216196,0.41008,2438.9,2438.8,0.41009]
[1728348217101,0.41009,2438.8,2438.7,4.0349]
[1728348217304,0.41009,2438.8,2438.7,4.44501]
[1728348220503,0.41009,2438.8,2438.7,1.23721]
[1728348221906,0.41009,2438.9,2438.8,0.41008]
[1728348222111,0.41007,2439.0,2438.9,0.41006]
[1728348223508,0.41007,2439.0,2438.9,0.41008]
[1728348224512,0.41005,2439.1,2439.0,0.41005]
[1728348227016,1.43859,2439.2,2438.8,1.48]
[1728348227208,0.41007,2439.0,2438.9,0.41007]
[1728348227516,0.8097,2439.1,2438.7,0.8271]
[1728348227712,0.41009,2438.8,2438.6,0.41012]
[1728348228018,0.4101,2438.8,2438.7,0.41011]
[1728348228718,0.41009,2438.8,2438.5,3.6936]
[1728348229011,0.41009,2438.8,2438.7,0.41011]
[1728348229219,0.41012,2438.7,2438.6,0.41012]
[1728348233714,0.41012,2438.7,2438.6,0.82452]
[1728348235808,1.42441,2438.9,2438.6,0.4144]
[1728348236012,0.3992,2438.9,2438.6,0.4144]
[1728348236208,0.80929,2438.9,2438.8,0.41009]
[1728348236416,0.3992,2438.9,2438.6,0.4144]
[1728348236616,0.41008,2438.9,2438.8,0.41009]
[1728348237020,0.41006,2439.0,2438.9,0.41006]
[1728348239831,3.2078,2439.5,2438.9,4.6878]
[1728348240023,0.4116,2439.3,2439.2,0.41001]
[1728348240917,3.61779,2439.5,2439.3,0.41]
[1728348241226,0.40999,2439.4,2439.3,0.41]
[1728348241524,0.40999,2439.4,2439.2,0.41001]
[1728348242025,0.41001,2439.3,2439.2,0.41001]
[1728348246619,1.43656,2439.5,2439.3,0.41]
[1728348246620,0.41,2439.4,2439.3,0.41]
[1728348248330,0.41004,2439.1,2439.0,0.81966]
[1728348248528,0.41004,2439.1,2439.0,0.4096]
[1728348250224,0.4161,2439.2,2438.9,0.41007]
[1728348250424,0.41006,2439.0,2438.9,0.41007]
[1728348253833,0.41006,2439.0,2438.8,5.514]
[1728348253834,0.41005,2439.1,2439.0,0.41005]
[1728348256124,0.41006,2439.0,2438.9,0.41006]
[1728348256527,0.41005,2439.1,2439.0,0.41005]
[1728348257833,0.82614,2439.2,2439.1,0.41004]
[1728348258622,0.4161,2439.2,2439.1,1.89004]
[1728348258829,0.41,2439.4,2439.3,0.40999]
[1728348259027,0.4171,2439.5,2439.2,1.259]
[1728348259234,0.82709,2439.5,2439.4,0.40999]
[1728348259736,4.92629,2439.5,2439.4,0.40999]
[1728348260932,0.82709,2439.5,2439.4,0.40999]
[1728348262822,0.4171,2439.5,2439.4,0.40999]
[1728348265531,0.82708,2439.5,2439.4,0.40999]
[1728348266239,0.4171,2439.5,2439.4,0.40999]
[1728348267330,0.40997,2439.6,2439.5,0.40998]
[1728348272138,0.40997,2439.6,2439.5,0.40997]
[1728348272336,0.40997,2439.6,2439.5,0.79587]
[1728348273942,0.80266,2439.7,2439.6,0.40996]
[1728348274340,0.80266,2439.7,2439.6,1.22366]
[1728348274728,0.80266,2439.7,2439.6,0.8137]
[1728348275041,0.40996,2439.6,2439.5,0.79587]
[1728348275241,0.40996,2439.6,2439.5,0.3859]
[1728348275434,0.40996,2439.6,2439.5,0.79588]
[1728348276645,0.40996,2439.6,2439.5,0.3859]
[1728348277439,0.40996,2439.6,2439.5,0.79588]
[1728348278537,0.40996,2439.6,2439.5,0.3859]
[1728348279442,0.40998,2439.5,2439.4,0.40998]
[1728348280546,6.60415,2439.5,2439.0,3.3038]
[1728348280840,6.60415,2439.5,2439.0,0.41004]
[1728348280841,0.41004,2439.1,2439.0,0.41004]
[1728348281935,0.41004,2439.2,2439.1,0.41003]
[1728348282945,2.50503,2439.3,2438.9,1.8217]
[1728348283241,0.82756,2439.1,2439.0,0.41005]
[1728348283630,0.4175,2439.1,2439.0,0.41005]
[1728348285440,0.82754,2439.1,2439.0,0.41005]
[1728348287252,0.82754,2439.1,2438.7,1.02528]
[1728348287253,0.41009,2438.8,2438.7,0.4101]
[1728348288037,0.41009,2438.9,2438.8,0.41009]
[1728348292136,0.7957,2439.0,2438.7,0.4101]
[1728348292137,0.4101,2438.8,2438.7,0.4101]
[1728348298553,0.41012,2438.7,2438.6,0.41012]
[1728348298750,0.4101,2438.8,2438.7,0.4101]
[1728348298951,0.8092,2438.8,2438.7,0.4101]
[1728348300156,0.3944,2439.0,2438.6,1.48]
[1728348300357,0.403,2439.1,2439.0,0.41006]
[1728348300558,3.2078,2439.6,2439.0,0.41006]
[1728348300559,0.41002,2439.3,2439.2,0.41002]
[1728348300965,4.51002,2439.3,2439.2,0.41002]
[1728348301852,5.58,2439.3,2438.9,0.8121]
[1728348302061,0.403,2439.2,2438.9,1.2201]
[1728348302267,0.81304,2439.2,2439.1,0.41004]
[1728348303570,0.403,2439.2,2439.1,0.41004]
[1728348303770,0.40997,2439.6,2439.1,8.7878]
[1728348303967,0.3952,2439.7,2439.4,1.48]
[1728348304278,0.3952,2439.7,2439.6,0.40996]
[1728348304573,0.80515,2439.7,2439.5,1.59377]
[1728348304771,0.80515,2439.7,2439.5,1.1838]
[1728348304958,0.80515,2439.7,2439.6,0.40996]
[1728348306475,0.3952,2439.7,2439.6,0.40996]
[1728348308673,0.4099,2440.0,2439.9,0.4099]
[1728348308880,2.2593,2440.2,2439.8,0.40992]
[1728348309179,0.3938,2440.2,2439.7,4.6878]
[1728348309373,0.3938,2440.2,2439.8,1.48]
[1728348309682,0.4099,2440.0,2439.8,1.88991]
[1728348309880,0.4099,2440.0,2439.8,0.40991]
[1728348310071,0.4099,2440.0,2439.7,4.6878]
[1728348310272,0.3855,2440.1,2439.7,4.6878]
[1728348310468,0.79539,2440.1,2439.9,0.4099]
[1728348311273,0.3938,2440.2,2439.7,3.2078]
[1728348311483,0.4148,2440.4,2440.3,0.40984]
[1728348311484,0.3938,2440.4,2440.3,0.40984]
[1728348311685,0.4098,2440.6,2440.4,0.40982]
[1728348311880,0.4098,2440.6,2440.4,0.80951]
[1728348312382,0.4098,2440.6,2440.4,0.80952]
[1728348312680,5.5776,2440.5,2440.0,3.2078]
[1728348312979,0.40991,2439.9,2439.8,0.096]
[1728348313282,0.40991,2439.9,2439.6,0.40996]
[1728348313283,0.40994,2439.8,2439.6,0.40996]
[1728348313482,2.3325,2439.8,2439.5,0.41]
[1728348313781,0.40997,2439.6,2439.5,0.40998]
[1728348314377,0.40995,2439.7,2439.5,0.40998]
[1728348314568,2.3325,2439.8,2439.5,0.40998]
[1728348314569,0.8525,2439.8,2439.5,1.48]
[1728348314775,0.8525,2439.8,2439.7,1.88994]
[1728348315077,0.8525,2439.8,2439.7,0.40994]
[1728348316978,0.8525,2439.8,2439.6,1.48]
[1728348317183,0.41001,2439.6,2439.4,0.41002]
[1728348317483,0.41004,2439.4,2439.3,0.41005]
[1728348317688,0.41004,2439.4,2439.1,2.2772]
[1728348317983,0.41002,2439.6,2439.4,0.41003]
[1728348318189,1.02497,2439.7,2439.3,0.41004]
[1728348318378,0.41003,2439.4,2439.3,0.41004]
[1728348318779,0.41003,2439.5,2439.3,0.41004]
[1728348319177,0.41003,2439.5,2439.4,0.41003]
[1728348319586,4.50923,2439.5,2439.4,0.41003]
[1728348320182,4.0992,2439.5,2439.2,0.41006]
[1728348320486,1.02497,2439.7,2439.3,0.41005]
[1728348320487,0.41005,2439.4,2439.3,0.41005]
[1728348320889,0.41007,2439.2,2439.0,0.41009]
[1728348321185,0.41007,2439.2,2438.7,3.3188]
[1728348321186,0.41011,2439.0,2438.8,0.41013]
[1728348321376,0.80229,2439.1,2438.9,0.41011]
[1728348322588,0.80229,2439.1,2439.0,0.4101]
[1728348322882,0.80229,2439.1,2438.9,0.41011]
[1728348323483,0.3922,2439.1,2438.7,0.4157]
[1728348323781,0.3922,2439.1,2438.8,0.41013]
[1728348323782,0.41012,2439.0,2438.8,0.41013]
[1728348324376,0.3922,2439.1,2438.7,0.4157]
[1728348324683,0.41011,2439.0,2438.9,0.41011]
[1728348326489,0.3922,2439.1,2438.7,0.4157]
[1728348326789,0.4101,2439.0,2438.8,0.41013]
[1728348327083,0.8218,2439.0,2438.4,6.1227]
[1728348327392,0.8218,2439.0,2438.9,0.41012]
[1728348327790,4.9218,2439.0,2438.9,0.41012]
[1728348328594,7.7195,2439.0,2438.5,0.4252]
[1728348328790,0.41016,2438.7,2438.6,0.41016]
[1728348330085,4.64479,2439.0,2438.6,0.41016]
[1728348330291,0.41015,2438.8,2438.6,0.41016]
[1728348330494,0.80305,2438.7,2438.6,0.41016]
[1728348330987,0.3929,2438.7,2438.6,0.41016]
[1728348331195,0.80305,2438.7,2438.6,0.41016]
[1728348332294,0.80305,2438.7,2438.5,0.41018]
[1728348332594,0.4004,2438.6,2438.5,0.41018]
[1728348333593,0.81057,2438.6,2438.5,0.41018]
[1728348333990,0.41019,2438.5,2438.4,0.41019]
[1728348335496,0.4102,2438.5,2438.4,0.41019]
[1728348336295,0.4004,2438.6,2438.2,4.0426]
[1728348336492,0.81057,2438.6,2438.5,0.41019]
[1728348338296,0.4004,2438.6,2438.5,0.41019]
[1728348340094,0.81057,2438.6,2438.5,0.41019]
[1728348340588,0.4004,2438.6,2438.5,0.41019]
[1728348341102,0.81057,2438.6,2438.5,0.41019]
[1728348341700,0.41019,2438.5,2438.4,0.41019]
[1728348341897,1.20578,2438.6,2438.5,0.41019]
[1728348343094,0.4102,2438.5,2438.4,0.41019]
[1728348343500,4.511,2438.5,2438.4,0.41019]
[1728348343798,4.1008,2438.5,2438.4,0.41019]
[1728348343997,4.51099,2438.5,2438.4,0.41019]
[1728348344693,4.1008,2438.5,2438.4,0.41019]
[1728348344898,4.51099,2438.5,2438.4,0.41019]
[1728348346200,4.1008,2438.5,2438.4,0.41019]
[1728348347306,0.7956,2438.6,2438.5,0.41019]
[1728348348095,0.4004,2438.6,2438.5,0.41019]
[1728348348504,0.41016,2438.7,2438.6,0.41017]
[1728348348702,1.43542,2438.9,2438.8,0.41014]
[1728348348703,0.8185,2438.9,2438.8,0.41014]
[1728348349506,0.4084,2438.9,2438.8,0.41014]
[1728348350112,0.81852,2438.9,2438.8,0.41014]
[1728348350815,3.2078,2439.0,2438.6,1.2276]
[1728348351009,3.61792,2439.0,2438.9,0.41012]
[1728348351304,0.41012,2439.0,2438.9,0.41012]
[1728348351506,0.41012,2439.0,2438.6,1.2276]
[1728348351507,4.1,2439.0,2438.6,1.2276]
[1728348351717,0.41013,2438.9,2438.8,0.41013]
[1728348352808,3.2078,2439.0,2438.6,1.2276]
[1728348353011,0.41013,2438.9,2438.8,0.41013]
[1728348355112,0.41014,2438.8,2438.7,0.41014]
[1728348356810,0.41014,2438.8,2438.6,1.2276]
[1728348357008,0.41014,2438.8,2438.7,0.41015]
[1728348357611,0.41015,2438.7,2438.6,1.63776]
[1728348358309,0.41015,2438.7,2438.1,4.293]
[1728348358310,1.48,2438.7,2438.5,0.41018]
[1728348358513,0.79797,2438.6,2438.5,0.41018]
[1728348358710,0.41019,2438.5,2438.4,0.3876]
[1728348359014,2.2694,2438.6,2438.3,1.22932]
[1728348359015,0.4102,2438.4,2438.3,1.22932]
[1728348360606,0.4139,2438.5,2438.2,0.3876]
[1728348360813,0.41022,2438.3,2438.2,0.79783]
[1728348361206,0.41022,2438.3,2438.2,0.3876]
[1728348361403,0.41022,2438.3,2438.2,0.41024]
[1728348361615,4.6878,2438.4,2438.1,1.20444]
[1728348361616,0.41024,2438.2,2438.1,1.20444]
[1728348362313,0.41023,2438.3,2438.2,0.41023]
[1728348363014,3.2078,2438.4,2438.3,0.41022]
[1728348363803,3.618,2438.4,2438.3,0.41022]
[1728348364807,0.41023,2438.3,2438.2,0.41023]
[1728348366020,0.41022,2438.3,2438.2,0.41023]
[1728348367620,0.41024,2438.2,2438.1,0.7942]
[1728348367817,0.81444,2438.2,2438.1,0.7942]
[1728348368512,0.81444,2438.2,2438.1,1.20445]
[1728348369116,0.41025,2438.1,2438.0,0.4247]
[1728348371716,4.4253,2438.2,2437.9,1.23588]
[1728348371923,0.41027,2438.0,2437.9,1.23588]
[1728348372118,0.41027,2438.0,2437.9,0.4201]
[1728348380726,0.41027,2438.0,2437.7,0.4022]
[1728348381024,0.41027,2438.0,2437.6,0.3864]
[1728348381025,0.41032,2437.7,2437.6,0.3864]
[1728348381227,0.41032,2437.7,2437.4,0.4002]
[1728348381228,0.41035,2437.5,2437.4,0.4002]
[1728348381429,1.89035,2437.5,2437.4,0.4002]
[1728348381629,1.48,2437.5,2437.4,0.81057]
[1728348381832,0.41035,2437.5,2437.4,0.41037]
[1728348382030,0.41035,2437.5,2437.4,0.82877]
[1728348383134,0.41035,2437.5,2437.4,0.4184]
[1728348383832,1.89035,2437.5,2437.4,0.4184]
[1728348384028,0.41037,2437.4,2437.3,0.3864]
[1728348384829,1.48,2437.5,2437.2,0.4104]
[1728348385029,1.48,2437.5,2437.1,0.3907]
[1728348385030,0.41038,2437.4,2437.3,0.41039]
[1728348385226,0.7972,2437.6,2437.1,2.2771]
[1728348385536,0.41038,2437.4,2437.3,0.41038]
[1728348388035,0.41035,2437.5,2437.2,0.41039]
[1728348388234,1.82306,2437.6,2437.2,0.41039]
[1728348388439,1.82306,2437.6,2437.1,2.2771]
[1728348388638,0.41039,2437.4,2437.3,0.41038]
[1728348388840,0.41039,2437.4,2437.1,2.2771]
[1728348388841,0.41039,2437.3,2437.2,0.41039]
[1728348389040,0.41038,2437.4,2437.1,0.7971]
[1728348389235,0.41038,2437.4,2437.3,0.41038]
[1728348390546,0.41039,2437.3,2437.2,0.4104]
[1728348391841,1.48,2437.5,2437.1,0.7971]
[1728348392144,0.41035,2437.5,2437.4,0.41036]
[1728348394346,0.41039,2437.3,2437.2,0.41039]
[1728348394741,1.48,2437.5,2437.1,0.7971]
[1728348394945,0.4104,2437.3,2437.2,0.4104]
[1728348396446,0.41038,2437.4,2437.3,0.41038]
[1728348397250,0.41039,2437.3,2437.2,0.41039]
[1728348397754,0.41039,2437.4,2437.3,0.41038]
[1728348397954,1.48,2437.5,2437.1,0.7971]
[1728348398457,0.41041,2437.2,2437.1,1.20751]
[1728348399149,0.41041,2437.2,2437.1,4.9003]
[1728348399354,0.41041,2437.2,2437.1,0.7971]
[1728348399549,0.41041,2437.2,2437.1,4.9003]
[1728348399953,0.41041,2437.2,2437.1,5.31072]
[1728348400948,3.2078,2437.3,2437.0,0.4011]
[1728348401142,0.41042,2437.1,2437.0,0.4011]
[1728348401841,0.41044,2437.0,2436.9,0.4025]
[1728348402247,0.41044,2437.0,2436.7,0.4209]
[1728348402248,3.2078,2437.0,2436.7,0.83138]
[1728348402449,0.41047,2436.8,2436.7,0.83138]
[1728348402647,0.41047,2436.8,2436.7,0.4209]
[1728348402848,1.21797,2436.8,2436.7,0.83139]
[1728348403051,0.8075,2436.8,2436.5,0.8238]
[1728348403358,1.89051,2436.6,2436.5,1.23432]
[1728348404162,1.89051,2436.6,2436.5,0.8238]
[1728348404460,1.89051,2436.6,2436.5,0.4025]
[1728348404649,1.89051,2436.6,2436.4,3.61833]
[1728348404650,0.41052,2436.5,2436.4,3.61833]
[1728348404841,0.41052,2436.5,2436.4,0.41053]
[1728348405245,1.48,2436.6,2436.5,0.41052]
[1728348405445,0.8075,2436.8,2436.3,0.8358]
[1728348405446,2.2875,2436.8,2436.3,0.8358]
[1728348405648,2.69798,2436.8,2436.7,0.41049]
[1728348405847,2.2875,2436.8,2436.7,0.41049]
[1728348406854,2.69797,2436.8,2436.7,0.41049]
[1728348409754,2.69797,2436.8,2436.3,1.86218]
[1728348409954,2.69797,2436.8,2436.6,0.4105]
[1728348411464,2.2875,2436.8,2436.6,0.4105]
[1728348411764,0.41049,2436.7,2436.5,0.41052]
[1728348412260,1.89052,2436.6,2436.4,0.41053]
[1728348412558,5.09833,2436.5,2436.3,0.82164]
[1728348412763,0.41054,2436.4,2436.3,0.82164]
[1728348412955,0.8077,2436.4,2436.3,0.82164]
[1728348414160,1.48,2436.7,2436.3,0.4111]
[1728348414469,1.41197,2436.9,2436.8,0.41047]
[1728348414470,0.3858,2436.9,2436.8,0.41047]
[1728348414760,0.3858,2436.9,2436.4,1.48]
[1728348414761,1.48,2436.9,2436.4,1.48]
[1728348415057,0.41048,2436.8,2436.7,0.41049]
[1728348415663,1.48,2436.9,2436.5,0.3993]
[1728348415664,1.89047,2436.9,2436.5,0.3993]
[1728348415863,1.89047,2436.9,2436.8,0.41047]
[1728348416867,5.99447,2436.9,2436.8,0.41047]
[1728348417068,5.99447,2436.9,2436.6,0.4135]
[1728348417069,0.41049,2436.8,2436.6,0.41049]
[1728348417363,1.89047,2436.8,2436.7,0.41049]
[1728348419357,0.4105,2436.7,2436.6,0.4105]
[1728348419572,0.8308,2436.7,2436.6,0.4105]
[1728348419769,1.2538,2436.7,2436.6,0.4105]
[1728348420374,0.8433,2436.7,2436.6,0.4105]
[1728348421165,4.9473,2436.7,2436.1,3.2078]
[1728348421463,1.89053,2436.5,2436.3,0.41054]